[Event "26th Triest Festival 2024"]
[Site "Triest"]
[Date "2024.09.02"]
[Round "1.8"]
[White "Sajn, Simon"]
[Black "Zhou, Yang-Fan"]
[Result "0-1"]
[Annotator "TA"]
[ECO "E61"]
[WhiteElo "2130"]
[BlackElo "2437"]
[PlyCount "116"]
[EventDate "2024.09.02"]
[EventType "swiss"]
[EventCountry "ITA"]
[SourceTitle "playchess.com"]
[Source "ChessBase"]
[SourceQuality "1"]
[TimeControl "5400+30"]

{[%evp 26,116,80,79,95,66,86,46,93,60,93,22,37,0,58,59,81,95,77,77,111,20,26,27,93,12,22,28,38,0,84,87,127,43,39,41,47,0,0,0,0,0,0,0,0,0,0,0,93,50,43,8,8,5,97,27,22,31,35,19,21,0,0,0,0,-8,-3,-8,-8,-8,0,0,0,0,0,-8,-8,-241,-53,-263,-77,-149,-93,-572,-313,-313,-313,-315,-315,-308,-308,-5929,-5604]} 1. d4 {[%emt 0:00:03]} Nf6 {[%emt 0:00:04]} 2. Bf4 {[%emt 0:00:10]} d6 {[%emt 0:01:01]} 3. e3 {[%emt 0:00:07]} g6 {[%emt 0:00:05]} 4. Nf3 {[%emt 0:00:24]} Bg7 {[%emt 0:00:04]} 5. Be2 {[%emt 0:00:19]} O-O {[%emt 0:00:02]} 6. O-O {[%emt 0:00:35]} b6 {[%emt 0:00:03]} 7. c4 {[%emt 0:04:21]} Bb7 {[%emt 0:00:13]} 8. Nc3 {[%emt 0:00:33]} Nbd7 {[%emt 0:01:34]} 9. Qc2 {[%emt 0:03:50]} Nh5 {[%emt 0:11:13]} 10. Bg5 {[%emt 0:01:24]} h6 {[%emt 0:00:08]} 11. Bh4 {[%emt 0:00:08]} g5 {[%emt 0:00:24]} 12. Nd2 {[%emt 0:01:59]} Nhf6 {[%emt 0:06:47]} 13. Bg3 {[%emt 0:00:13]} e6 {[%emt 0:00:31]} 14. f4 {[%emt 0:06:33]} Ne8 {[%emt 0:02:39]} 15. fxg5 {[%emt 0:11:33]} Qxg5 {[%emt 0:03:41]} 16. Qd3 {[%emt 0:03:30]} f5 {[%emt 0:07:37]} (16... Nef6 $14) 17. Bf3 $16 {[%emt 0:02:53]} c6 {[%emt 0:01:59]} 18. Bf4 {[%emt 0:13:47]} (18. b4 $16) 18... Qe7 {[%emt 0:02:09]} 19. Bg3 {[%emt 0:05:16]} e5 {[%emt 0:04:15]} ({Better is} 19... Qg5 $11) 20. Bd1 $14 {[%emt 0:00:49]} e4 {[%emt 0:02:43]} 21. Qe2 {[%emt 0:01:48]} c5 {[%emt 0:00:41]} 22. Nb3 {[%emt 0:02:56]} Rc8 {[%emt 0:02:20]} 23. Nd5 {[%emt 0:04:24]} (23. a4 $16) 23... Bxd5 $11 {[%emt 0:03:56]} 24. cxd5 {[%emt 0:00:07]} c4 {[%emt 0:00:01]} (24... Qg5 $11) 25. Rc1 {[%emt 0:00:43]} (25. Nd2 $16) 25... b5 $11 {[%emt 0:01:41]} 26. Na5 {[%emt 0:00:54]} Nb6 {[%emt 0:01:58]} 27. b3 {[%emt 0:01:15]} (27. a4 $5) 27... Nxd5 {[%emt 0:07:04]} (27... c3 $1 $11 {remains equal.}) 28. bxc4 $16 {[%emt 0:01:39]} f4 {[%emt 0:00:26]} 29. cxd5 {[%emt 0:01:59]} ({Reject} 29. Bxf4 $6 Nxf4 30. Rxf4 Rxf4 31. exf4 d5 $11 (31... Bxd4+ 32. Kh1 $15)) ({White should try} 29. exf4 $16 {Bb3 is the strong threat.} b4 (29... Bxd4+ 30. Kh1 $16) 30. Qd2) 29... Rxc1 $14 {[%emt 0:00:08]} 30. Bxf4 {[%emt 0:00:21]} Nc7 {[%emt 0:05:02]} 31. Qd2 {[%emt 0:06:59]} (31. Nc6 $14 Qf7 32. Nxa7) 31... Rxd1 $11 {[%emt 0:01:15]} 32. Qxd1 {[%emt 0:00:05]} Nxd5 {[%emt 0:00:58]} 33. Qb3 {[%emt 0:00:15]} Qe6 {[%emt 0:09:27]} 34. g3 {[%emt 0:00:40]} Nxf4 {[%emt 0:04:49]} 35. Rxf4 {[%emt 0:00:31]} Qxb3 {[%emt 0:00:34]} 36. axb3 {[%emt 0:01:22]} Re8 {[%emt 0:02:35]} (36... Rxf4 $11 37. gxf4 Kf7) 37. Kf2 {[%emt 0:02:30]} Bf8 {[%emt 0:02:07]} 38. Nc6 {[%emt 0:01:26]} Ra8 $1 {[%emt 0:07:53]} 39. Rf5 {[%emt 0:04:25]} (39. Rxe4 $5 a5 $8 40. Rg4+ Kh8 41. Rf4 $11) 39... a6 {[%emt 0:01:14] [#]} (39... Rc8 $11 40. d5 (40. Nxa7 Rc2+ 41. Ke1 b4 $11) 40... a5) 40. g4 {[%emt 0:00:35]} (40. h4 $1 $16) 40... d5 $11 {[%emt 0:00:47]} 41. Rxd5 {[%emt 0:01:00]} Rc8 {[%emt 0:00:01]} 42. Ne5 {[%emt 0:04:25]} Be7 $1 {[%emt 0:02:16]} 43. Kg3 {[%emt 0:02:08]} Bg5 {[%emt 0:00:30]} 44. Rc5 {[%emt 0:04:06]} Rf8 $1 {[%emt 0:01:27]} 45. Rc6 {[%emt 0:01:59]} Bxe3 {[%emt 0:00:44]} 46. Rxa6 {[%emt 0:01:00]} Bxd4 {[%emt 0:00:53]} 47. Re6 {[%emt 0:00:34]} b4 {[%emt 0:03:05]} (47... Rf6 $5 48. Re8+ $8 (48. Rxf6 $2 {too greedy.} Bxe5+ 49. Kf2 Bxf6 $19) 48... Kg7 $11) 48. Nc6 {[%emt 0:01:35]} Rf3+ {[%emt 0:00:27]} 49. Kg2 {[%emt 0:01:15]} Bc5 {[%emt 0:00:08]} 50. Rxe4 {[%emt 0:01:35]} Rxb3 {[%emt 0:00:03]} 51. Ne7+ $2 {[%emt 0:00:54]} (51. Re8+ $11 Kf7 52. Re5) 51... Kf8 $2 {[%emt 0:01:26]} (51... Kh7 $19 {Threatens to win with ...Rb2+.} 52. Nf5 Rb2+ 53. Kf3 b3 (53... Rxh2 54. Rc4 $11)) 52. Nf5 $2 {[%emt 0:00:08]} ({White must play} 52. Ng6+ $1 $15 Kf7 53. Ne5+ Kg7 54. Nd7) 52... Rc3 $2 {[%emt 0:00:19]} (52... Rb2+ $19 {and Black stays clearly on top.} 53. Kf3 Rf2+ (53... Rxh2 54. Rc4 $11) 54. Kg3 b3) 53. Rf4 {[%emt 0:01:45] [#]} (53. Nd4 $142) 53... Ke8 {[%emt 0:01:37]} ({Black should play} 53... Rc2+ $1 54. Kg3 Ke8) 54. Ng3 $2 {[%emt 0:01:08][%mdl 8192]} (54. Nd4 $17) 54... b3 {[%emt 0:00:43]} 55. Rf1 {[%emt 0:00:23]} b2 {[%emt 0:01:02]} 56. Rb1 {[%emt 0:00:19]} Rc2+ {[%emt 0:00:04]} 57. Kf3 {[%emt 0:00:26]} Rxh2 {[%emt 0:01:17]} 58. Ne2 $2 {[%emt 0:00:09]} (58. Ne4 Bd4 59. Nd6+ Kd7 60. Nf5) 58... Rf2+ {[%emt 0:00:20]} 0-1

[Event "26th Triest Festival 2024"]
[Site "Triest"]
[Date "2024.09.02"]
[Round "1.10"]
[White "Colonetti, Fabio"]
[Black "Citak, Selim"]
[Result "1-0"]
[Annotator "RC"]
[ECO "A20"]
[WhiteElo "2118"]
[BlackElo "2416"]
[PlyCount "145"]
[EventDate "2024.09.02"]
[EventType "swiss"]
[EventCountry "ITA"]
[SourceTitle "playchess.com"]
[Source "ChessBase"]
[SourceQuality "1"]
[TimeControl "5400+30"]

1. c4 {[%emt 0:00:17]} e5 {[%emt 0:00:08]} 2. g3 {[%emt 0:00:12]} Nf6 {[%emt 0:00:15]} 3. Bg2 {[%emt 0:00:14]} c6 {[%emt 0:01:09]} 4. Nf3 {[%emt 0:00:21]} e4 {[%emt 0:00:40]} 5. Nd4 {[%emt 0:00:19]} d5 {[%emt 0:00:18]} 6. cxd5 {[%emt 0:00:45]} Qxd5 {[%emt 0:00:23]} 7. e3 {[%emt 0:00:33]} Qe5 {[%emt 0:08:12]} 8. f4 {[%emt 0:00:40]} exf3 {[%emt 0:01:17]} 9. Nxf3 {[%emt 0:01:45]} Qh5 {[%emt 0:01:03]} 10. O-O {[%emt 0:02:23]} Be7 {[%emt 0:01:34]} 11. Nc3 {[%emt 0:03:11]} Bh3 {[%emt 0:02:28]} 12. Qb3 {[%emt 0:06:10]} Bxg2 {[%emt 0:01:02]} 13. Kxg2 {[%emt 0:00:37]} b6 {[%emt 0:01:08]} 14. d4 {[%emt 0:01:49]} Nd5 {[%emt 0:08:16]} 15. Ne5 {[%emt 0:09:48]} Nf6 {[%emt 0:15:17]} 16. e4 {[%emt 0:06:56]} Ng4 {[%emt 0:08:43]} 17. Nxg4 {[%emt 0:04:44]} Qxg4 {[%emt 0:00:05]} 18. Qxf7+ {[%emt 0:05:27]} Kd8 {[%emt 0:00:04]} 19. h3 {[%emt 0:15:03]} Qg6 {[%emt 0:00:38]} 20. Qxg6 {[%emt 0:01:54]} hxg6 {[%emt 0:00:05]} 21. d5 {[%emt 0:06:26]} Bf6 {[%emt 0:01:07]} 22. Bf4 {[%emt 0:05:30]} Re8 {[%emt 0:03:01]} 23. Rad1 {[%emt 0:06:17]} c5 {[%emt 0:02:22]} 24. Nb5 {[%emt 0:08:48]} Rxe4 {[%emt 0:07:26]} 25. Nc7 {[%emt 0:01:42]} g5 {[%emt 0:00:06]} 26. Nxa8 {[%emt 0:08:49]} gxf4 {[%emt 0:00:08]} 27. Rxf4 {[%emt 0:00:59]} Rxf4 {[%emt 0:00:54]} 28. gxf4 {[%emt 0:00:03]} Bxb2 {[%emt 0:00:06]} 29. Rb1 {[%emt 0:01:22]} Bc3 {[%emt 0:06:29]} 30. d6 {[%emt 0:00:27]} Na6 {[%emt 0:01:48]} 31. Rb3 {[%emt 0:01:17]} Bd2 {[%emt 0:03:48]} 32. Rg3 {[%emt 0:01:08]} c4 {[%emt 0:05:28]} 33. Kf3 {[%emt 0:00:05]} c3 {[%emt 0:02:02]} 34. Ke2 {[%emt 0:00:04]} Bxf4 {[%emt 0:01:30]} 35. Rxc3 {[%emt 0:00:17]} Bxd6 {[%emt 0:00:09]} 36. Rf3 {[%emt 0:01:04]} Kc8 {[%emt 0:04:09]} 37. Rf7 {[%emt 0:00:44]} Kb8 {[%emt 0:00:08]} 38. Nxb6 {[%emt 0:00:36]} axb6 {[%emt 0:00:05]} 39. Rxg7 {[%emt 0:00:04]} Nc5 {[%emt 0:01:33]} 40. Kf3 {[%emt 0:00:54]} Kc8 {[%emt 0:00:40]} 41. h4 {[%emt 0:00:29]} Ne6 {[%emt 0:00:15]} 42. Rh7 {[%emt 0:00:43]} Kd8 {[%emt 0:00:29]} 43. Ke4 {[%emt 0:00:21]} Nf8 {[%emt 0:02:05]} 44. Ra7 {[%emt 0:00:34]} Nd7 {[%emt 0:03:10]} 45. Kd5 {[%emt 0:00:27]} Bb8 {[%emt 0:00:18]} 46. Ra8 {[%emt 0:00:32]} Kc7 {[%emt 0:01:05]} 47. Ra3 {[%emt 0:00:06]} Nf6+ {[%emt 0:01:17]} 48. Ke6 {[%emt 0:00:14]} Nh5 {[%emt 0:00:12]} 49. Rb3 {[%emt 0:00:38]} Kc6 {[%emt 0:00:30]} 50. Kf5 {[%emt 0:00:30]} Bd6 {[%emt 0:02:17]} 51. Kg5 {[%emt 0:00:24]} Ng3 {[%emt 0:00:26]} 52. h5 {[%emt 0:00:26]} Nxh5 {[%emt 0:00:32]} 53. Kxh5 {[%emt 0:00:05]} b5 {[%emt 0:00:35]} 54. Kg4 {[%emt 0:00:10]} b4 {[%emt 0:01:16]} 55. Kf5 {[%emt 0:00:07]} Kb5 {[%emt 0:01:03]} 56. Ke6 {[%emt 0:00:20]} Bf8 {[%emt 0:02:07]} 57. Kd5 {[%emt 0:00:40]} Bg7 {[%emt 0:01:23]} 58. Rf3 {[%emt 0:02:06]} Bc3 {[%emt 0:00:19]} 59. Rf8 {[%emt 0:00:32]} Kb6 {[%emt 0:00:46]} 60. Kc4 {[%emt 0:00:18]} Be5 {[%emt 0:00:31]} 61. Re8 {[%emt 0:00:50]} Bd6 {[%emt 0:00:27]} 62. Re6 {[%emt 0:00:09]} Kc6 {[%emt 0:04:43]} 63. Rg6 {[%emt 0:00:08]} Kc7 {[%emt 0:00:00]} 64. Kd5 {[%emt 0:00:18]} Bf4 {[%emt 0:00:00]} 65. Kc5 {[%emt 0:00:56]} Bd2 {[%emt 0:00:00]} 66. Rg7+ {[%emt 0:00:06]} Kb8 {[%emt 0:00:00]} 67. Kc6 {[%emt 0:00:17]} Be1 {[%emt 0:00:00]} 68. Rb7+ {[%emt 0:00:53]} Ka8 {[%emt 0:00:00]} 69. Kb6 {[%emt 0:00:48]} Bf2+ {[%emt 0:02:03]} 70. Ka6 {[%emt 0:00:05]} Bg3 {[%emt 0:00:27]} 71. Rg7 {[%emt 0:00:15]} Bb8 {[%emt 0:00:31]} 72. Rg8 {[%emt 0:01:14]} b3 {[%emt 0:00:05]} 73. Rxb8+ {[%emt 0:00:08]} 1-0

[Event "26th Triest Festival 2024"]
[Site "Triest"]
[Date "2024.09.02"]
[Round "1.11"]
[White "Schnaider, Ilan"]
[Black "Kather, Yannick"]
[Result "1-0"]
[Annotator "RC"]
[ECO "B36"]
[WhiteElo "2409"]
[BlackElo "2107"]
[PlyCount "83"]
[EventDate "2024.09.02"]
[EventType "swiss"]
[EventCountry "ITA"]
[SourceTitle "playchess.com"]
[Source "ChessBase"]
[SourceQuality "1"]
[TimeControl "5400+30"]

1. e4 {[%emt 0:00:08]} c5 {[%emt 0:00:09]} 2. Nf3 {[%emt 0:00:18]} Nc6 {[%emt 0:00:09]} 3. d4 {[%emt 0:00:24]} cxd4 {[%emt 0:00:10]} 4. Nxd4 {[%emt 0:00:02]} g6 {[%emt 0:00:15]} 5. c4 {[%emt 0:00:50]} Nf6 {[%emt 0:00:11]} 6. Nc3 {[%emt 0:00:45]} d6 {[%emt 0:00:13]} 7. f3 {[%emt 0:01:41]} Nxd4 {[%emt 0:00:18]} 8. Qxd4 {[%emt 0:00:08]} Bg7 {[%emt 0:00:15]} 9. Be3 {[%emt 0:05:02]} O-O {[%emt 0:00:36]} 10. Qd2 {[%emt 0:01:13]} Be6 {[%emt 0:10:12]} 11. Be2 {[%emt 0:02:09]} Qa5 {[%emt 0:08:53]} 12. Rc1 {[%emt 0:11:59]} Rfc8 {[%emt 0:00:46]} 13. b3 {[%emt 0:00:35]} a6 {[%emt 0:10:01]} 14. O-O {[%emt 0:17:13]} b5 {[%emt 0:06:15]} 15. cxb5 {[%emt 0:02:17]} axb5 {[%emt 0:00:18]} 16. Bd4 {[%emt 0:02:14]} Bd7 {[%emt 0:10:54]} 17. Kh1 {[%emt 0:19:31]} b4 {[%emt 0:03:56]} 18. Na4 {[%emt 0:00:25]} Bxa4 {[%emt 0:01:20]} 19. bxa4 {[%emt 0:00:01]} Qxa4 {[%emt 0:01:10]} 20. Bc4 {[%emt 0:00:26]} Nd7 {[%emt 0:07:47]} 21. Be3 {[%emt 0:11:30]} Bc3 {[%emt 0:05:56]} 22. Qe2 {[%emt 0:00:47]} Ne5 {[%emt 0:00:20]} 23. Bd5 {[%emt 0:01:19]} Rab8 {[%emt 0:02:19]} 24. f4 {[%emt 0:00:41]} Nd7 {[%emt 0:02:37]} 25. Bb3 {[%emt 0:11:05]} Qb5 {[%emt 0:00:58]} 26. Qf3 {[%emt 0:01:07]} Bf6 {[%emt 0:08:38]} 27. Bd2 {[%emt 0:02:21]} Rc5 {[%emt 0:04:50]} 28. Rcd1 {[%emt 0:02:15]} Nb6 {[%emt 0:00:44]} 29. e5 {[%emt 0:01:54]} dxe5 {[%emt 0:00:22]} 30. fxe5 {[%emt 0:00:22]} Rxe5 {[%emt 0:01:14]} 31. Bf4 {[%emt 0:00:25]} Rf5 {[%emt 0:03:28]} 32. Bc2 {[%emt 0:00:18]} Rxf4 {[%emt 0:00:45]} 33. Qxf4 {[%emt 0:00:01]} Rc8 {[%emt 0:00:54]} 34. Bb3 {[%emt 0:00:17]} Kg7 {[%emt 0:01:11]} 35. Rfe1 {[%emt 0:02:44]} Rc5 {[%emt 0:02:47]} 36. Rxe7 {[%emt 0:02:33]} Nd5 {[%emt 0:01:32]} 37. Bxd5 {[%emt 0:00:57]} Rxd5 {[%emt 0:00:04]} 38. Ree1 {[%emt 0:00:51]} Bc3 {[%emt 0:02:08]} 39. Rf1 {[%emt 0:00:40]} Rxd1 {[%emt 0:01:01]} 40. Qxf7+ {[%emt 0:00:14]} Kh6 {[%emt 0:00:07]} 41. Rxd1 {[%emt 0:00:07]} Qe2 {[%emt 0:00:28]} 42. Qf4+ {[%emt 0:00:13]} 1-0

[Event "26th Triest Festival 2024"]
[Site "Triest"]
[Date "2024.09.02"]
[Round "1.12"]
[White "Hofmann, Lorenz"]
[Black "Lohia, Sohum"]
[Result "1-0"]
[Annotator "TA"]
[ECO "C54"]
[WhiteElo "2099"]
[BlackElo "2402"]
[PlyCount "119"]
[EventDate "2024.09.02"]
[EventType "swiss"]
[EventCountry "ITA"]
[SourceTitle "playchess.com"]
[Source "ChessBase"]
[SourceQuality "1"]
[TimeControl "5400+30"]

{[%evp 10,119,10,17,29,-16,-11,-15,-7,-12,-8,-26,-25,-50,-30,-38,-19,-45,0,-32,-16,-40,-35,-39,-27,-33,0,-22,0,-64,-59,-63,-39,-113,-45,-68,-50,-115,-82,-79,-88,-83,-83,-97,-96,-86,-62,-75,-77,-66,-66,-70,-66,-80,-66,-85,-39,-44,-50,-74,-53,-61,-35,-51,0,0,0,0,0,0,0,0,22,0,45,51,67,75,156,144,278,265,265,218,350,341,290,168,556,514,500,469,609,533,883,895,637,1158,1176,1043,1408,1337,1621,1596,1289,1159,1489,1008,1338,1483,1620,1700]} 1. e4 {[%emt 0:00:01]} e5 {[%emt 0:02:52]} 2. Nf3 {[%emt 0:00:06]} Nc6 {[%emt 0:00:05]} 3. Bc4 {[%emt 0:00:04]} Nf6 {[%emt 0:00:05]} 4. d3 {[%emt 0:00:04]} Bc5 {[%emt 0:01:03]} 5. O-O {[%emt 0:00:06]} d6 {[%emt 0:00:07]} 6. c3 {[%emt 0:00:09]} a5 {[%emt 0:00:05]} 7. Be3 {[%emt 0:02:11]} Bxe3 {[%emt 0:01:08]} 8. fxe3 {[%emt 0:00:09]} O-O {[%emt 0:00:39] The position is equal.} 9. Nbd2 {[%emt 0:01:46]} Ne7 {[%emt 0:07:06]} 10. Qe2 {[%emt 0:10:53]} Ng6 {[%emt 0:00:55]} 11. h3 {[%emt 0:18:39]} c6 {[%emt 0:01:26]} 12. Bb3 {[%emt 0:00:58]} Qe7 {[%emt 0:04:12]} 13. Rf2 {[%emt 0:03:42]} Be6 {[%emt 0:07:00]} 14. Bc2 {[%emt 0:07:03]} h6 {[%emt 0:04:10]} 15. Nf1 {[%emt 0:04:48]} d5 {[%emt 0:15:28]} 16. exd5 {[%emt 0:10:35]} cxd5 {[%emt 0:00:44]} 17. Ng3 {[%emt 0:02:11]} Nd7 {[%emt 0:07:06]} 18. e4 {[%emt 0:03:52]} dxe4 {[%emt 0:05:07]} 19. dxe4 {[%emt 0:00:21]} (19. Qxe4 $11 f5 20. Qxb7) 19... Qc5 $15 {[%emt 0:02:56]} 20. Nf5 {[%emt 0:02:59]} Rfd8 {[%emt 0:07:14]} 21. Nh2 {[%emt 0:06:41]} (21. Qe3 $15) 21... Bxf5 {[%emt 0:05:37]} ({Better is} 21... Nf4 $17 22. Qe3 Qxe3 23. Nxe3 b5) 22. exf5 {[%emt 0:00:16]} Nf4 {[%emt 0:00:24]} 23. Qf1 {[%emt 0:01:16]} (23. Qf3 $15) 23... Nf6 {[%emt 0:02:27][%cal Bd7f6,Bf6d5,Bd5e3][%mdl 32]} 24. Nf3 {[%emt 0:03:38] Wards off Rd2} N6d5 {[%emt 0:02:21] ...Ne3 is the strong threat.} 25. Kh2 {[%emt 0:01:22][%cal Og2g3]} Ne3 {[%emt 0:04:37]} 26. Qg1 {[%emt 0:00:26]} Qc7 {[%emt 0:03:56][%cal Oe5e4] Hoping for ...e4!} 27. g3 {[%emt 0:01:59]} Nfd5 {[%emt 0:03:15] A dynamic duo of knights.} 28. Re1 {[%emt 0:02:34] [#]} Nxc2 {[%emt 0:01:17]} 29. Rxc2 {[%emt 0:00:01]} f6 {[%emt 0:01:40]} 30. Qf2 {[%emt 0:07:16]} Ne7 {[%emt 0:00:36]} 31. Nh4 {[%emt 0:00:10]} Rd6 {[%emt 0:00:52]} 32. Rd2 {[%emt 0:01:01]} Rad8 {[%emt 0:00:26]} (32... Rxd2 $17 33. Qxd2 a4) 33. Red1 {[%emt 0:00:19]} a4 {[%emt 0:05:00]} 34. a3 {[%emt 0:00:56]} Rxd2 {[%emt 0:00:49]} 35. Rxd2 {[%emt 0:00:01]} Rd6 {[%emt 0:01:01]} 36. g4 {[%emt 0:01:32]} e4 {[%emt 0:01:18]} (36... Kh7 $15) 37. Kg2 $11 {[%emt 0:00:49]} Qc6 {[%emt 0:01:37] ( -> ...e3+)} 38. Rxd6 {[%emt 0:01:29]} Qxd6 {[%emt 0:00:00]} 39. Qd4 {[%emt 0:00:01]} Qxd4 {[%emt 0:01:30]} 40. cxd4 {[%emt 0:00:01][%mdl 4096] Endgame. KN-KN} Nd5 {[%emt 0:01:01]} 41. Kf2 {[%emt 0:01:54]} Kf7 {[%emt 0:00:33]} 42. Ng2 {[%emt 0:01:11]} Ke7 {[%emt 0:00:23]} 43. Ne3 {[%emt 0:01:29] Black is on the road to losing.} Nf4 {[%emt 0:00:33] [#]} ({Black should play} 43... Nb6) 44. Nd1 $1 $16 {[%emt 0:00:16]} Kd6 {[%emt 0:01:12]} (44... Kf7 $16) 45. Ke3 $1 $18 {[%emt 0:00:55][%csl LRe4,LRf4]} Nxh3 {[%emt 0:00:11]} 46. Nc3 $1 {[%emt 0:00:09]} Kc6 {[%emt 0:00:50]} (46... Ng5 {might work better.} 47. Nxa4 Kc6) 47. Nxa4 {[%emt 0:00:10]} Ng5 {[%emt 0:00:19]} 48. Nc5 {[%emt 0:00:20]} (48. Nc3 $142) 48... b6 $2 {[%emt 0:00:36]} (48... Kd5 {is tougher.} 49. Nxb7 Nf3) 49. Nxe4 {[%emt 0:00:06] White is clearly winning.} Nf7 {[%emt 0:00:07]} 50. a4 {[%emt 0:00:34]} Kd5 {[%emt 0:00:11]} 51. Kd3 {[%emt 0:00:10]} h5 {[%emt 0:00:38]} 52. gxh5 {[%emt 0:00:14]} (52. Nc3+ Kc6 53. gxh5 Nd6 54. d5+ Kd7) 52... Nh6 {[%emt 0:00:07]} 53. Nc3+ {[%emt 0:00:07]} (53. b4 $142) 53... Kc6 {[%emt 0:00:12]} 54. Ke4 {[%emt 0:00:11]} Ng4 {[%emt 0:00:11]} 55. b4 {[%emt 0:00:42][%cal Bb2b4,Bb4b5][%mdl 32]} Nf2+ {[%emt 0:00:08]} 56. Ke3 {[%emt 0:00:12]} Ng4+ {[%emt 0:00:05]} 57. Kd3 {[%emt 0:00:10]} Nf2+ {[%emt 0:00:07]} 58. Kc4 {[%emt 0:00:08] Black must now prevent a5.} Ng4 {[%emt 0:00:14]} 59. Nd5 {[%emt 0:01:48]} Nh6 {[%emt 0:01:21]} 60. b5+ {[%emt 0:00:05] Weighted Error Value: White=0.16 (very precise) /Black=0.34.  Mistake:       	White=4     	Black=7      Inaccurate:     	White=3     	Black=5      OK:         	White=12    	Black=14     Best:        	White=5     	Black=1      Strong:       	White=2     	---} 1-0